bitfinex-derivatives/quotes_ETHF0:USTF0_20250904
["timestamp","ask_amount","ask_price","bid_price","bid_amount"]
[1756986098343,0.4166,4421.5,4421.3,4.83013981]
[1756986098743,0.40698,4421.4,4421.3,4.83013981]
[1756986099243,0.40698,4421.4,4421.3,4.65295288]
[1756986099945,0.4166,4421.5,4421.4,0.40698]
[1756986100138,0.40698,4421.4,4421.3,4.65295288]
[1756986100446,0.4166,4421.5,4421.3,4.65295288]
[1756986101745,0.40698,4421.4,4421.3,4.65295288]
[1756986102041,0.82358,4421.4,4421.3,4.42295288]
[1756986102245,1.11048,4421.4,4421.3,4.65195288]
[1756986102640,1.39298,4421.4,4421.3,4.65195288]
[1756986103049,1.39298,4421.4,4421.3,5.2364967]
[1756986103243,0.9449,4421.2,4421.1,1.21515288]
[1756986103443,1.3426,4421.2,4421.1,1.21515288]
[1756986103646,1.3426,4421.2,4421.1,1.44415288]
[1756986104346,1.3426,4421.2,4421.1,1.21515288]
[1756986104646,1.3426,4421.2,4421.1,1.44415288]
[1756986113956,1.0748,4421.2,4421.1,1.44415288]
[1756986115251,0.8047,4421.2,4421.1,1.44415288]
[1756986116757,0.3977,4421.4,4421.1,1.44415288]
[1756986116954,0.407,4421.2,4421.1,0.229]
[1756986117154,0.80469,4421.4,4421.1,3.4368]
[1756986117360,0.40698,4421.4,4421.3,2.02894524]
[1756986117657,0.5644,4421.5,4421.3,2.25794524]
[1756986118157,0.97138,4421.5,4421.4,1.21515288]
[1756986120758,1.24148,4421.5,4421.4,1.21515288]
[1756986121061,0.97138,4421.5,4421.4,1.21515288]
[1756986122061,0.80468,4421.5,4421.4,1.21515288]
[1756986123458,0.98018,4421.5,4421.4,1.21515288]
[1756986127566,1.25028,4421.5,4421.4,1.21515288]
[1756986127968,0.98018,4421.5,4421.4,1.21515288]
[1756986130660,0.40697,4421.6,4421.4,1.78175288]
[1756986130866,0.67705,4421.8,4421.7,1.005]
[1756986131064,0.67705,4421.8,4421.7,2.44915288]
[1756986131968,1.11578,4422.5,4422.4,0.2782]
[1756986132164,0.94478,4422.5,4422.4,2.44915288]
[1756986132863,1.08738,4422.5,4422.4,33.65715288]
[1756986134064,1.08738,4422.5,4422.4,36.86495288]
[1756986134757,0.67698,4422.5,4422.4,36.86495288]
[1756986135765,0.40688,4422.5,4422.4,36.86495288]
[1756986135968,0.40688,4422.5,4422.4,38.08010576]
[1756986136166,0.40688,4422.5,4422.4,36.86495288]
[1756986136467,0.40688,4422.5,4422.4,38.08010576]
[1756986136871,0.4104,4422.9,4422.4,37.64170576]
[1756986137171,1.10705,4422.9,4422.8,2.16705288]
[1756986137373,1.10705,4422.9,4422.8,2.39605288]
[1756986137568,0.2898,4423.3,4423.2,0.5481]
[1756986137772,0.7002,4423.3,4423.2,2.39605288]
[1756986138166,1.10701,4423.3,4423.2,2.39605288]
[1756986139272,1.38995,4423.9,4423.8,0.5481]
[1756986139468,0.40675,4423.9,4423.8,5.60385288]
[1756986139971,1.38995,4423.9,4423.8,5.60385288]
[1756986142267,1.38995,4423.9,4423.0,2.20069724]
[1756986142268,1.01694,4423.7,4423.3,3.2078]
[1756986142469,1.39,4423.4,4423.3,3.2078]
[1756986142668,1.39,4423.4,4423.3,3.7083]
[1756986142868,1.39,4423.4,4423.3,4.33605105]
[1756986143268,1.39,4423.4,4423.3,4.10705105]
[1756986143475,1.39,4423.4,4423.3,4.33605105]
[1756986143774,1.39,4423.4,4423.3,5.55120393]
[1756986144363,1.39,4423.4,4423.3,5.14740393]
[1756986144877,1.39,4423.4,4423.3,4.65195288]
[1756986145669,1.01706,4423.2,4422.8,3.2078]
[1756986145877,1.39005,4422.9,4422.8,3.2078]
[1756986146076,1.39005,4422.9,4422.8,4.65195288]
[1756986147569,1.39005,4422.9,4422.8,4.42295288]
[1756986147765,1.39005,4422.9,4422.8,1.44415288]
[1756986148073,1.39005,4422.9,4422.8,1.71565288]
[1756986148272,1.39005,4422.9,4422.8,2.39605288]
[1756986149677,1.39005,4422.9,4422.8,2.15527287]
[1756986151671,0.69665,4422.9,4422.8,2.15527287]
[1756986152476,0.40685,4422.9,4422.8,2.15527287]
[1756986158181,1.10705,4422.9,4422.8,2.15527287]
[1756986159274,1.39005,4422.9,4422.8,0.229]
[1756986159475,1.39005,4422.9,4422.8,1.20337287]
[1756986164578,1.39005,4422.9,4422.8,1.49467287]
[1756986165485,1.39005,4422.9,4422.8,1.90877287]
[1756986166282,0.7195,4423.4,4423.3,0.5763]
[1756986166478,4.22477,4423.6,4423.5,0.7403]
[1756986166479,0.40678,4423.6,4423.5,0.7403]
[1756986166785,0.40678,4423.6,4423.5,1.3834]
[1756986167782,1.12628,4423.6,4423.5,1.3834]
[1756986168987,1.40918,4423.6,4423.5,1.2194]
[1756986172893,0.70068,4423.6,4423.5,1.3834]
[1756986173091,0.40678,4423.6,4423.5,2.35777287]
[1756986173291,0.4256,4423.9,4423.5,1.94367287]
[1756986173492,0.4256,4423.9,4423.8,1.94874574]
[1756986173792,0.7195,4423.9,4423.8,3.16814574]
[1756986174490,1.12625,4423.9,4423.8,3.16814574]
[1756986176496,0.40675,4423.9,4423.8,3.16814574]
[1756986179494,1.12625,4423.9,4423.8,3.16814574]
[1756986179796,1.12625,4423.9,4423.8,2.19377287]
[1756986179996,1.40915,4423.9,4423.8,0.97437287]
[1756986180295,1.40915,4423.9,4423.8,1.20337287]
[1756986180492,1.40915,4423.9,4423.8,0.97437287]
[1756986180693,1.40915,4423.9,4423.8,1.20337287]
[1756986182501,1.40915,4423.9,4423.8,0.97437287]
[1756986182798,1.40915,4423.9,4423.8,1.20337287]
[1756986183296,1.57189,4423.5,4423.4,2.02779724]
[1756986183601,1.57189,4423.5,4423.4,1.20337287]
[1756986183995,1.57189,4423.5,4423.4,0.97437287]
[1756986184301,1.57189,4423.5,4423.4,1.20337287]
[1756986184498,0.40682,4423.2,4423.1,2.31909724]
[1756986184800,1.40922,4423.2,4423.1,1.20337287]
[1756986186605,1.40922,4423.2,4423.1,0.229]
[1756986186805,1.40922,4423.2,4423.1,1.20337287]
[1756986187707,1.40922,4423.2,4423.1,0.229]
[1756986187907,1.40922,4423.2,4423.1,1.20337287]
[1756986192508,1.40922,4423.2,4423.1,1.49467287]
[1756986192708,0.40682,4423.2,4423.1,2.20597287]
[1756986193710,0.69842,4423.2,4423.1,2.20597287]
[1756986193911,1.11682,4423.2,4423.1,2.20597287]
[1756986195213,1.39222,4423.2,4423.1,2.20597287]
[1756986195615,1.39222,4423.2,4423.1,0.97437287]
[1756986195912,1.39222,4423.2,4423.1,0.2821]
[1756986196114,1.39222,4423.2,4423.1,1.20337287]
[1756986196806,0.69847,4422.6,4422.5,2.59009724]
[1756986197006,0.40687,4422.6,4422.5,5.36624298]
[1756986197916,0.40687,4422.6,4422.5,5.59706121]
[1756986198509,1.0171,4423.0,4422.5,5.16596121]
[1756986198711,0.4184,4423.4,4423.2,0.4311]
[1756986199017,1.1168,4423.4,4423.3,1.2224]
[1756986199727,0.4068,4423.4,4423.3,1.2224]
[1756986200318,1.3922,4423.4,4423.3,1.2224]
[1756986204815,1.3922,4423.4,4422.9,5.23559724]
[1756986204816,0.57864,4423.0,4422.9,2.02779724]
[1756986205022,1.56404,4423.0,4422.9,1.20337287]
[1756986205526,1.56404,4423.0,4422.9,1.48547287]
[1756986205818,1.56404,4423.0,4422.9,2.19677287]
[1756986206031,1.39224,4423.0,4422.9,2.19677287]
[1756986207231,0.40684,4423.0,4422.9,2.19677287]
[1756986208117,0.40683,4423.1,4423.0,0.7296]
[1756986208336,0.40683,4423.1,4423.0,1.3897]
[1756986208822,3.6262,4423.6,4423.0,0.9586]
[1756986209025,4.32458,4423.6,4423.5,1.96777287]
[1756986209226,4.32458,4423.6,4423.5,2.19677287]
[1756986209628,1.11678,4423.6,4423.5,2.36407287]
[1756986211331,1.39218,4423.6,4423.5,1.2224]
[1756986211527,1.39218,4423.6,4423.5,2.00543414]
[1756986213237,1.39218,4423.6,4423.5,1.21413414]
[1756986213432,1.39218,4423.6,4423.5,1.44313414]
[1756986213935,1.39218,4423.6,4423.5,1.72523414]
[1756986214233,1.39218,4423.6,4423.5,2.15633414]
[1756986214425,1.39218,4423.6,4423.5,2.43653414]
[1756986217733,1.39218,4423.6,4423.5,2.00543414]
[1756986217935,0.40678,4423.6,4423.5,2.60383414]
[1756986219733,0.69838,4423.6,4423.5,2.60383414]
[1756986221240,1.11678,4423.6,4423.5,1.3897]
[1756986221537,1.39218,4423.6,4423.5,2.43653414]
[1756986224539,1.39218,4423.6,4423.5,2.20753414]
[1756986224733,1.11678,4423.6,4423.5,2.60563414]
[1756986224934,0.40678,4423.6,4423.5,2.60563414]
[1756986227428,1.09238,4423.6,4423.5,2.60563414]
[1756986230545,1.37418,4423.6,4423.5,2.43653414]
[1756986230842,1.37418,4423.6,4423.5,1.70203414]
[1756986231045,1.37418,4423.6,4423.5,2.09113414]
[1756986231546,1.37418,4423.6,4423.5,2.37583414]
[1756986231842,1.37418,4423.6,4423.5,2.54493414]
[1756986232030,1.37418,4423.6,4423.5,2.37583414]
[1756986232434,0.40681,4423.3,4423.2,3.24193138]
[1756986232632,1.37421,4423.3,4423.2,1.86213414]
[1756986232847,1.37422,4423.2,4423.1,2.02779724]
[1756986233042,1.37422,4423.2,4423.1,0.229]
[1756986233339,0.56894,4423.0,4422.9,31.198]
[1756986233549,0.99194,4423.0,4422.9,31.427]
[1756986234142,0.99194,4423.0,4422.9,31.198]
[1756986234447,0.99194,4423.0,4422.9,31.427]
[1756986237948,0.99194,4423.0,4422.9,31.198]
[1756986238248,0.99194,4423.0,4422.9,31.427]
[1756986238952,0.99194,4423.0,4422.9,31.8161]
[1756986240038,0.82984,4423.0,4422.9,31.8161]
[1756986240447,0.99194,4423.0,4422.9,31.8161]
[1756986241547,0.82984,4423.0,4422.9,31.8161]
[1756986241753,0.40684,4423.0,4422.9,31.8161]
[1756986241957,0.82984,4423.0,4422.9,31.8161]
[1756986246653,0.40684,4423.0,4422.9,31.8161]
[1756986247765,0.82984,4423.0,4422.9,31.8161]
[1756986247954,4.03764,4423.0,4422.9,33.03023414]
[1756986250860,4.19974,4423.0,4422.9,33.03023414]
[1756986251462,4.03764,4423.0,4422.9,33.03023414]
[1756986253564,4.03764,4423.0,4422.9,2.36623414]
[1756986253863,3.61464,4423.0,4422.9,2.36623414]
[1756986256063,4.30844,4423.0,4422.9,2.36623414]
[1756986256569,4.58554,4423.0,4422.9,2.36623414]
[1756986258666,4.58554,4423.0,4422.9,1.1521]
[1756986259166,4.75144,4423.0,4422.9,1.1521]
[1756986261157,4.75144,4423.0,4422.9,0.9231]
[1756986261358,4.75144,4423.0,4422.9,1.1521]
[1756986261767,4.75144,4423.0,4422.9,0.2648]
[1756986262063,4.75144,4423.0,4422.9,0.8893]
[1756986262964,4.58554,4423.0,4422.9,1.1585]
[1756986264571,4.75144,4423.0,4422.9,1.1585]
[1756986265868,4.58554,4423.0,4422.9,1.1585]
[1756986269772,4.75144,4423.0,4422.9,1.1585]
[1756986270975,4.75144,4423.0,4422.9,0.4938]
[1756986271576,4.75144,4423.0,4422.9,1.46843735]
[1756986271776,4.75144,4423.0,4422.9,1.86393735]
[1756986272577,4.75144,4423.0,4422.9,2.13313735]
[1756986275480,4.75144,4423.0,4422.9,1.46843735]
[1756986275876,4.75144,4423.0,4422.9,1.20363735]
[1756986277479,4.75144,4423.0,4422.5,2.02779724]
[1756986277480,1.37777,4422.6,4422.5,2.02779724]
[1756986277676,0.57283,4422.0,4421.6,2.02779724]
[1756986277881,0.99593,4422.0,4421.9,31.43]
[1756986278776,0.99593,4422.0,4421.9,31.201]
[1756986278981,0.99593,4422.0,4421.9,31.43]
[1756986281578,1.12063,4422.0,4421.8,0.97463735]
[1756986281781,0.9709,4421.7,4421.6,0.6603]
[1756986281975,0.9709,4421.7,4421.6,1.86393735]
[1756986282383,0.9709,4421.7,4421.6,2.13313735]
[1756986283583,0.4231,4421.7,4421.6,2.13313735]
[1756986283782,0.81174,4421.8,4421.7,0.9132]
[1756986284286,1.06854,4421.8,4421.7,0.9132]
[1756986284787,0.40694,4421.8,4421.7,0.9132]
[1756986285880,0.81174,4421.8,4421.7,0.9132]
[1756986286289,0.40694,4421.8,4421.7,0.9132]
[1756986294498,1.06854,4421.8,4421.7,0.9132]
[1756986295095,0.66374,4421.8,4421.7,0.9132]
[1756986296202,1.06854,4421.8,4421.7,0.9132]
[1756986296394,1.33024,4421.8,4421.7,0.2597]
[1756986296593,1.33024,4421.8,4421.7,1.23433735]
[1756986296893,1.33024,4421.8,4421.7,1.63403735]
[1756986299102,1.33024,4421.8,4421.7,1.88783735]
[1756986300593,0.40694,4421.8,4421.7,1.88783735]
[1756986301394,0.81174,4421.8,4421.7,1.88783735]
[1756986301793,0.40694,4421.8,4421.7,1.88783735]
[1756986303403,0.40695,4421.8,4421.7,6.11398735]
[1756986303801,0.40695,4421.8,4421.7,5.88783735]
[1756986306906,1.33025,4421.8,4421.7,2.11683735]
[1756986310611,0.9233,4421.4,4421.3,2.94099724]
[1756986310794,1.01741,4421.7,4420.9,3.0677701]
[1756986310795,0.40699,4421.3,4421.2,2.02779724]
[1756986311005,0.9233,4421.3,4421.2,0.229]
[1756986311198,0.40705,4420.7,4420.6,0.97463735]
[1756986311503,1.33035,4420.7,4420.6,1.20363735]
[1756986312209,0.4071,4420.1,4420.0,3.00243459]
[1756986312407,0.65495,4419.6,4419.5,8.75914975]
[1756986312706,0.65495,4419.6,4419.5,5.09583735]
[1756986312905,0.65495,4419.6,4419.5,5.49073735]
[1756986313702,1.30615,4419.6,4419.5,5.49073735]
[1756986313903,0.40715,4419.6,4419.5,5.49073735]
[1756986314501,0.40715,4419.6,4419.5,6.4653747]
[1756986314706,0.40715,4419.6,4419.5,5.49073735]
[1756986315104,3.61487,4420.4,4420.3,0.5246]
[1756986315314,0.40707,4420.4,4420.3,2.12313735]
[1756986316708,1.30607,4420.4,4420.3,2.12313735]
[1756986317209,0.40707,4420.4,4420.3,2.12313735]
[1756986317708,1.04527,4420.4,4420.3,1.89413735]
[1756986317911,1.30607,4420.4,4420.3,2.12313735]
[1756986319312,0.65487,4420.4,4420.3,2.12313735]
[1756986319608,0.40707,4420.4,4420.3,2.12313735]
[1756986320306,0.5451,4422.5,4420.3,6.34936735]
[1756986320503,1.21320257,4423.7,4423.1,0.5246]
[1756986320699,0.40674,4424.1,4424.0,0.1568]
[1756986321005,0.40673,4424.2,4424.1,0.9195]
[1756986321203,1.30573,4424.2,4424.1,0.231]
[1756986321405,1.30573,4424.2,4424.1,1.20563735]
[1756986321711,1.30575,4423.9,4423.8,3.2078]
[1756986321903,1.30575,4423.9,4423.8,3.4388]
[1756986322105,1.30575,4423.9,4423.8,0.231]
[1756986324603,1.30575,4423.9,4423.8,0.4883]
[1756986324805,1.30575,4423.9,4423.8,1.1505]
[1756986325602,0.40675,4423.9,4423.8,1.1505]
[1756986326912,0.40675,4423.9,4423.8,4.3583]
[1756986329410,0.40675,4423.9,4423.8,8.3583]
[1756986329810,0.40673,4424.2,4423.8,7.9634]
[1756986330019,0.40673,4424.2,4424.1,4.38195091]
[1756986330207,0.40673,4424.2,4424.1,4.61295091]
[1756986330613,1.04485,4425.0,4424.9,0.9195]
[1756986330807,1.04485,4425.0,4424.9,1.1505]
[1756986331518,1.30565,4425.0,4424.9,1.1505]
[1756986331719,1.46035,4425.0,4424.9,1.1505]
[1756986331920,1.30565,4425.0,4424.9,1.1505]
[1756986332718,1.46035,4425.0,4424.9,0.8832]
[1756986332914,1.30565,4425.0,4424.9,1.1505]
[1756986333323,1.46035,4425.0,4424.9,0.231]
[1756986333628,0.91532,4424.3,4424.2,0.9195]
[1756986333822,0.91532,4424.3,4424.2,1.1505]
[1756986333823,1.30572,4424.3,4424.2,1.1505]
[1756986334710,1.30572,4424.3,4424.2,0.9195]
[1756986334913,1.30572,4424.3,4424.2,1.1505]
[1756986335614,1.30572,4424.3,4424.2,0.9195]
[1756986335811,1.30572,4424.3,4424.2,0.7556]
[1756986336015,1.30572,4424.3,4424.2,0.2573]
[1756986336321,1.30572,4424.3,4424.2,0.4883]
[1756986336520,1.30572,4424.3,4424.2,0.2573]
[1756986336720,1.30574,4424.0,4423.9,4.1273]
[1756986336920,1.46044,4424.0,4423.9,3.4388]
[1756986337122,1.46044,4424.0,4423.9,3.6961]
[1756986337421,1.46044,4424.0,4423.9,4.3583]
[1756986338016,0.40678,4423.6,4423.5,0.3949]
[1756986338216,1.0537,4423.5,4423.4,4.1273]
[1756986338417,1.0537,4423.5,4423.4,4.3583]
[1756986338717,0.899,4423.5,4423.4,4.3583]
[1756986338921,0.2478,4423.5,4423.4,4.3583]
[1756986339214,0.899,4423.5,4423.4,4.3583]
[1756986339722,0.65459,4423.5,4423.4,4.3583]
[1756986340020,1.04499,4423.5,4423.4,4.3583]
[1756986340726,0.65459,4423.5,4423.4,4.3583]
[1756986341929,1.04499,4423.5,4423.4,4.3583]
[1756986342131,1.30579,4423.5,4423.4,4.3583]
[1756986342526,0.40679,4423.5,4423.4,4.64084089]
[1756986343526,0.40679,4423.5,4423.4,5.854734]
[1756986351728,2.03449,4423.5,4423.4,5.623734]
[1756986351933,2.29019,4423.5,4423.4,5.853734]
[1756986352722,2.03449,4423.5,4423.4,5.853734]
[1756986353734,1.40679,4423.5,4423.4,5.853734]
[1756986354326,2.03449,4423.5,4423.4,5.853734]
[1756986356734,1.40679,4423.5,4423.4,5.853734]
[1756986357729,1.40679,4423.5,4423.4,5.57119311]
[1756986357935,1.40679,4423.5,4423.4,5.8564969]
[1756986359530,1.66499,4423.5,4423.4,5.8564969]
[1756986360337,1.40679,4423.5,4423.4,5.8564969]
[1756986360736,1.66499,4423.5,4423.4,5.8564969]
[1756986360933,2.29019,4423.5,4423.4,5.6264969]
[1756986361135,2.46129,4423.5,4423.4,5.8564969]
[1756986361730,2.29019,4423.5,4423.4,5.8564969]
[1756986366636,1.66499,4423.5,4423.4,5.8564969]
[1756986367238,1.40679,4423.5,4423.4,5.8564969]
[1756986368143,1.40679,4423.5,4423.4,7.88429414]
[1756986368342,1.40679,4423.5,4423.4,7.88473717]
[1756986368542,0.2582,4424.3,4424.2,0.5106]
[1756986368740,0.2582,4424.3,4424.2,2.64273993]
[1756986369139,0.66492,4424.3,4424.2,2.64273993]
[1756986371546,1.03442,4424.3,4424.2,2.64273993]
[1756986371746,1.29012,4424.3,4424.2,2.64273993]
[1756986376439,0.4096,4424.9,4424.3,0.4309]
[1756986376642,0.40669,4424.6,4424.5,3.2078]
[1756986376845,1.35479,4424.6,4424.5,4.93743993]
[1756986377345,1.35479,4424.6,4424.5,1.72963993]
[1756986378648,1.35479,4424.6,4424.5,0.28574682]
[1756986378947,1.35479,4424.6,4424.5,0.51574682]
[1756986380042,1.35479,4424.6,4424.5,0.28574682]
[1756986380249,5.35479,4424.6,4424.5,0.51574682]
[1756986383140,5.35479,4424.6,4424.5,0.23]
[1756986383349,5.35479,4424.6,4424.5,0.51560216]
[1756986385947,5.35479,4424.6,4424.5,0.79410216]
[1756986386253,5.35479,4424.6,4424.5,0.51560216]
[1756986386555,1.35479,4424.6,4424.5,1.50600216]
[1756986393455,1.35479,4424.6,4424.5,2.47992099]
[1756986393950,0.66969,4424.6,4424.5,2.64192099]
[1756986394147,1.35479,4424.6,4424.5,2.47992099]
[1756986394654,1.35479,4424.6,4424.5,2.48024609]
[1756986396446,1.35479,4424.6,4424.5,1.53834609]
[1756986396646,1.35479,4424.6,4424.5,0.51492726]
[1756986400556,1.35479,4424.6,4424.5,0.79342726]
[1756986400758,1.35479,4424.6,4424.5,0.51492726]
[1756986403159,1.35479,4424.6,4424.5,0.51658737]
[1756986406163,1.35479,4424.6,4424.5,0.28758737]
[1756986410667,1.35479,4424.6,4424.5,7.37e-06]
[1756986413160,4.56259,4424.6,4424.5,7.37e-06]
[1756986413769,1.35662,4424.3,4424.2,1.89231883]
[1756986416258,1.35662,4424.3,4424.2,2.16311883]
[1756986418068,1.35662,4424.3,4424.2,1.93411883]
[1756986418270,1.35662,4424.3,4424.2,2.16311883]
[1756986419369,0.40672,4424.3,4424.2,2.16311883]
[1756986422582,0.40672,4424.3,4424.2,2.44755216]
[1756986422978,0.40672,4424.3,4424.2,6.16311883]
[1756986423180,0.40672,4424.3,4424.2,6.447601]
[1756986423376,6.25769,4425.1,4425.0,0.5467]
[1756986423377,3.6285,4425.1,4425.0,0.5467]
[1756986423681,4.1577,4425.1,4425.0,2.387601]
[1756986424083,4.56434,4425.1,4425.0,2.387601]
[1756986424279,1.35654,4425.1,4425.0,2.387601]
[1756986424680,1.08714,4425.1,4425.0,2.387601]
[1756986424982,1.08714,4425.1,4425.0,2.38756059]
[1756986425378,1.35654,4425.1,4425.0,2.03406059]
[1756986425679,1.35654,4425.1,4425.0,2.38756059]
[1756986426078,0.40664,4425.1,4425.0,3.36147942]
[1756986426282,1.08714,4425.1,4425.0,2.15856059]
[1756986426478,1.35654,4425.1,4425.0,2.38756059]
[1756986426678,1.35654,4425.1,4425.0,2.03406059]
[1756986427685,1.35654,4425.1,4425.0,2.15856059]
[1756986427879,1.35654,4425.1,4425.0,0.51344176]
[1756986428482,1.35654,4425.1,4425.0,0.78934176]
[1756986429384,1.35654,4425.1,4425.0,0.28996471]
[1756986429588,5.53825883,4425.1,4425.0,4.71e-06]
[1756986430486,0.40667,4424.8,4424.7,0.229]
[1756986430685,0.9499,4424.4,4424.3,0.97391883]
[1756986430889,1.35661,4424.4,4424.3,1.20291883]
[1756986431083,1.35661,4424.4,4424.3,1.47881883]
[1756986431688,1.35661,4424.4,4424.3,1.74961883]
[1756986432085,1.35661,4424.4,4424.3,1.52061883]
[1756986432287,1.35661,4424.4,4424.3,1.47881883]
[1756986432688,1.35661,4424.4,4424.3,1.73931883]
[1756986432889,1.35661,4424.4,4424.3,2.08681883]
[1756986433089,1.08721,4424.4,4424.3,2.08681883]
[1756986436198,1.08721,4424.4,4424.3,1.85781883]
[1756986436397,1.08721,4424.4,4424.3,2.08681883]
[1756986437095,1.08721,4424.4,4424.3,1.85781883]
[1756986437296,1.08721,4424.4,4424.3,2.08681883]
[1756986438096,0.82741,4424.4,4424.3,2.08681883]
[1756986438292,1.08831,4424.4,4424.3,1.1129]
[1756986438597,1.36831,4424.4,4424.3,1.73931883]
[1756986438798,1.36831,4424.4,4424.3,1.51031883]
[1756986439097,1.36831,4424.4,4424.3,1.73931883]
[1756986440297,1.36831,4424.4,4424.3,1.47881883]
[1756986440492,1.36831,4424.4,4424.3,1.24981883]
[1756986440801,1.36831,4424.4,4424.3,1.20291883]
[1756986442697,0.40674,4424.0,4423.9,3.2078]
[1756986442894,1.24854,4424.0,4423.9,4.94351883]
[1756986443094,1.24854,4424.0,4423.9,5.28951883]
[1756986446506,1.24854,4424.0,4423.9,5.06051883]
[1756986446701,1.24854,4424.0,4423.9,5.28951883]
[1756986447508,1.24854,4424.0,4423.9,5.06051883]
[1756986447708,1.24854,4424.0,4423.9,5.28951883]
[1756986447918,1.52854,4424.0,4423.9,4.94351883]
[1756986448810,1.52854,4424.0,4423.4,3.4801]
[1756986448811,1.12449,4423.5,4423.4,3.4801]
[1756986449110,1.52859,4423.5,4423.4,4.68301883]
[1756986449609,0.8109,4423.4,4423.3,31.192]
[1756986449809,0.8109,4423.4,4423.3,31.421]
[1756986450202,0.8109,4423.4,4422.9,2.24694494]
[1756986450203,0.68434,4423.0,4422.9,0.8788]
[1756986450398,0.40685,4422.9,4422.8,3.2078]
[1756986450608,1.36845,4422.9,4422.8,3.4368]
[1756986451106,1.36845,4422.9,4422.8,3.7091]
[1756986452012,0.40692,4422.1,4422.0,33.20783166]
[1756986452311,0.81102,4422.1,4422.0,31.421]
[1756986453321,1.01731,4422.2,4421.1,3.2078]
[1756986453516,0.40698,4421.4,4421.3,0.97391883]
[1756986453708,1.36858,4421.4,4421.3,1.24621883]
[1756986453906,1.36858,4421.4,4421.2,0.229]
[1756986454413,1.36861,4421.1,4421.0,1.24621883]
[1756986455517,0.1602,4421.0,4420.9,0.229]
[1756986455715,1.1218,4421.0,4420.9,0.5013]
[1756986455916,1.1218,4421.0,4420.9,0.7618]
[1756986456614,1.1218,4421.0,4420.9,1.1078]
[1756986457009,1.1218,4421.0,4420.9,0.7618]
[1756986457713,1.1218,4421.0,4420.9,1.1078]
[1756986458220,0.5575,4420.6,4420.5,31.194]
[1756986458412,1.3687,4420.1,4420.0,3.2078]
[1756986458612,0.81124,4419.7,4419.6,0.5328]
[1756986458912,1.08874,4419.7,4419.6,1.97752692]
[1756986459119,1.08874,4419.7,4419.6,2.32352692]
[1756986459616,0.40714,4419.7,4419.6,2.32352692]
[1756986465422,0.79374,4419.7,4419.6,2.32352692]
[1756986466126,0.40714,4419.7,4419.6,2.32352692]
[1756986467126,0.79374,4419.7,4419.6,2.32352692]
[1756986467627,0.40714,4419.7,4419.6,2.32352692]
[1756986468818,1.31944,4419.7,4419.6,1.97752692]
[1756986469421,1.31944,4419.7,4419.6,2.31552692]
[1756986470323,1.06424,4419.7,4419.6,2.31552692]
[1756986470726,0.79374,4419.7,4419.6,2.31552692]
[1756986471121,0.40714,4419.7,4419.6,2.31552692]
[1756986472120,1.06424,4419.7,4419.6,0.8708]
[1756986472320,1.31944,4419.7,4419.6,1.74852692]
[1756986472517,1.31944,4419.7,4419.6,1.97752692]
[1756986473329,0.4072,4419.1,4419.0,3.2078]
[1756986473535,0.40725,4418.5,4418.4,3.2078]
[1756986473827,0.79385,4418.5,4418.4,3.9675]
[1756986474129,0.79385,4418.5,4418.4,4.3055]
[1756986474328,1.47195,4418.5,4418.4,4.91142692]
[1756986474532,1.47195,4418.5,4418.4,5.18322692]
[1756986475027,1.47195,4418.5,4418.4,5.52122692]
[1756986475227,1.47195,4418.5,4418.4,5.18322692]
[1756986475426,1.47195,4418.5,4418.4,3.2078]
[1756986475628,1.47195,4418.5,4418.4,3.4368]
[1756986475823,1.47195,4418.5,4418.4,3.6957]
[1756986476028,1.47195,4418.5,4418.4,3.9675]
[1756986476225,1.47195,4418.5,4418.4,5.18322692]
[1756986478130,1.47195,4418.5,4418.4,3.9675]
[1756986478527,1.47195,4418.5,4418.4,3.6957]
[1756986478735,1.47195,4418.5,4418.4,3.9675]
[1756986479032,1.47195,4418.5,4418.4,3.4368]
[1756986479332,1.47195,4418.5,4418.4,3.6957]
[1756986479526,1.47195,4418.5,4418.4,3.4368]
[1756986479727,1.47195,4418.5,4418.4,3.6957]
[1756986480734,1.47195,4418.5,4418.4,3.4368]
[1756986481434,1.47195,4418.5,4418.4,3.6957]
[1756986481634,1.47195,4418.5,4418.4,3.9675]
[1756986481824,1.47195,4418.5,4418.4,4.3055]
[1756986482629,1.47195,4418.5,4418.4,3.9675]
[1756986484929,0.3866,4418.9,4418.8,0.5307]
[1756986485135,0.40721,4418.9,4418.8,2.31342692]
[1756986485334,0.79381,4418.9,4418.8,2.31342692]
[1756986485833,0.40721,4418.9,4418.8,2.31342692]
[1756986487129,0.79381,4418.9,4418.8,2.31342692]
[1756986487334,1.06431,4418.9,4418.8,2.31342692]
[1756986489028,1.31951,4418.9,4418.8,0.5307]
[1756986489232,1.47195,4418.5,4418.4,3.2078]
[1756986489537,1.47195,4418.5,4418.4,3.6957]
[1756986489927,1.47195,4418.5,4418.4,5.52122692]
[1756986490124,1.47195,4418.5,4418.4,3.7385]
[1756986490333,1.47195,4418.5,4418.4,0.229]
[1756986490733,1.47195,4418.5,4418.4,0.4879]
[1756986491236,1.47195,4418.5,4418.4,0.229]
[1756986492332,1.47195,4418.5,4417.8,3.2078]
[1756986492333,1.33351,4417.9,4417.8,3.2078]
[1756986492531,1.33351,4417.9,4417.8,3.4368]
[1756986494142,1.33351,4417.9,4417.8,0.229]
[1756986495038,0.257,4416.5,4416.4,3.2078]
[1756986495234,0.40744,4416.5,4416.4,5.49002692]
[1756986495536,0.66444,4416.5,4416.4,4.42352692]
[1756986495736,1.49384,4416.5,4416.4,3.6953]
[1756986496238,1.49384,4416.5,4416.4,3.4368]
[1756986497143,1.49384,4416.5,4416.4,3.9505]
[1756986497836,1.49384,4416.5,4416.4,4.2724]
[1756986498141,1.49384,4416.5,4416.4,3.9505]
[1756986498342,1.49384,4416.5,4416.4,3.4368]
[1756986498537,1.49384,4416.5,4416.4,3.6953]